bitfinex/quotes_SOLUSD_20241220
["timestamp","ask_amount","ask_price","bid_price","bid_amount"]
[1734655336132,33.33723669,196.48,196.4,32.44400974]
[1734655336457,32.44400974,196.46,196.38,32.44400974]
[1734655336647,0.89359239,196.45,196.39,32.44400974]
[1734655337657,0.89359239,196.45,196.4,32.44400974]
[1734655337855,0.89336623,196.44,196.41,32.44400974]
[1734655338030,0.89340259,196.47,196.41,32.44400974]
[1734655338634,32.56949974,196.46,196.39,32.44400974]
[1734655338869,32.44400974,196.44,196.36,32.44400974]
[1734655339177,32.44400974,196.41,196.33,32.44400974]
[1734655339362,0.26352788,196.4,196.35,32.44400974]
[1734655339532,0.26352788,196.4,196.36,32.44400974]
[1734655339856,0.26352788,196.42,196.39,32.44400974]
[1734655340168,32.44400974,196.44,196.37,32.44400974]
[1734655340334,32.44400974,196.4,196.33,32.44400974]
[1734655340536,0.26352788,196.39,196.34,32.44400974]
[1734655341130,0.26352788,196.39,196.33,32.44400974]
[1734655341432,0.26352788,196.4,196.33,32.44400974]
[1734655341642,0.26352788,196.4,196.34,32.44400974]
[1734655341841,0.26352788,196.4,196.35,32.44400974]
[1734655342475,0.26352788,196.42,196.36,32.44400974]
[1734655343174,0.26352788,196.42,196.38,32.44400974]
[1734655343346,0.26352788,196.42,196.37,32.44400974]
[1734655343671,0.26352788,196.43,196.39,32.44400974]
[1734655343853,32.70753762,196.49,196.41,32.44400974]
[1734655344054,0.26352788,196.49,196.43,32.44400974]
[1734655344259,32.44400974,196.56,196.48,32.44400974]
[1734655344562,0.26352788,196.53,196.5,32.44400974]
[1734655344878,0.90987498,196.54,196.52,32.44400974]
[1734655345168,0.6463471,196.54,196.52,32.44400974]
[1734655345381,0.26352788,196.53,196.48,32.44400974]
[1734655345581,0.26352788,196.53,196.5,32.44400974]
[1734655345737,0.26352788,196.53,196.51,32.44400974]
[1734655346082,0.6463471,196.54,196.52,32.44400974]
[1734655346265,0.6463471,196.54,196.53,32.44400974]
[1734655347781,0.6463471,196.54,196.51,32.44400974]
[1734655347978,0.6463471,196.54,196.49,32.44400974]
[1734655348139,0.12879727,196.54,196.49,32.44400974]
[1734655348344,32.57280701,196.54,196.47,32.44400974]
[1734655348774,45.16470974,196.53,196.46,32.44400974]
[1734655349370,12.7207,196.53,196.47,32.44400974]
[1734655349989,12.7207,196.53,196.46,32.44400974]
[1734655350192,45.16470974,196.53,196.46,32.44400974]
[1734655350368,12.7219,196.51,196.44,32.44400974]
[1734655350554,12.7219,196.51,196.45,32.44400974]
[1734655351092,12.7219,196.51,196.4,32.44400974]
[1734655351093,45.16590974,196.51,196.44,32.44400974]
[1734655351557,45.16590974,196.51,196.43,32.44400974]
[1734655352291,45.16590974,196.51,196.44,32.44400974]
[1734655352481,45.16590974,196.51,196.43,32.44400974]
[1734655353289,45.16720974,196.49,196.41,32.44400974]
[1734655353459,45.16720974,196.49,196.3,52.26860974]
[1734655353460,32.44400974,196.46,196.39,32.44400974]
[1734655353665,32.44400974,196.44,196.37,32.44400974]
[1734655354066,23.776884,196.48,196.35,32.44400974]
[1734655354276,32.44400974,196.42,196.35,32.44400974]
[1734655354874,32.44400974,196.43,196.35,32.44400974]
[1734655355394,12.7278,196.42,196.36,32.44400974]
[1734655355853,12.7278,196.42,196.35,32.44400974]
[1734655356059,38.55460974,196.4,196.33,32.44400974]
[1734655356264,32.44400974,196.38,196.3,32.44400974]
[1734655356481,32.44400974,196.33,196.26,32.44400974]
[1734655356696,20.0,196.37,196.23,32.44400974]
[1734655356697,32.44400974,196.31,196.23,32.44400974]
[1734655356876,32.44400974,196.32,196.25,32.44400974]
[1734655357079,32.44400974,196.34,196.26,32.44400974]
[1734655357280,32.44400974,196.36,196.28,32.44400974]
[1734655357660,32.44400974,196.35,196.28,32.44400974]
[1734655358162,32.44400974,196.36,196.28,32.44400974]
[1734655358367,32.44400974,196.34,196.27,32.44400974]
[1734655358880,14.73330194,196.35,196.27,32.44400974]
[1734655359391,14.73330194,196.35,196.28,32.44400974]
[1734655360169,14.73330194,196.35,196.27,32.44400974]
[1734655360370,14.73330194,196.35,196.2,33.20825559]
[1734655360371,32.44400974,196.32,196.25,32.44400974]
[1734655360880,45.17700974,196.34,196.26,32.44400974]
[1734655361075,32.44400974,196.33,196.26,32.44400974]
[1734655361889,32.44400974,196.31,196.23,32.44400974]
[1734655362191,12.7343,196.32,196.22,32.44400974]
[1734655362192,32.44400974,196.3,196.22,32.44400974]
[1734655362373,32.44400974,196.29,196.22,32.44400974]
[1734655363392,32.44400974,196.23,196.16,32.44400974]
[1734655363566,32.44400974,196.21,196.14,32.44400974]
[1734655364680,45.18440974,196.23,196.16,32.44400974]
[1734655365473,32.44400974,196.22,196.14,32.44400974]
[1734655365668,32.44400974,196.22,196.04,3.03237817]
[1734655365669,12.7404,196.23,196.11,32.44400974]
[1734655365891,32.44400974,196.19,196.12,32.44400974]
[1734655366091,12.7404,196.23,196.18,32.44400974]
[1734655366297,12.7375,196.27,196.21,32.44400974]
[1734655366467,9.7912,196.28,196.12,12.7472]
[1734655366670,32.44400974,196.32,196.25,32.44400974]
[1734655366872,6.184,196.33,196.26,32.44400974]
[1734655367091,6.184,196.33,196.28,32.44400974]
[1734655367293,6.184,196.33,196.27,32.44400974]
[1734655367494,6.184,196.33,196.28,32.44400974]
[1734655369205,6.184,196.33,196.27,32.44400974]
[1734655370206,6.184,196.33,196.26,32.44400974]
[1734655370592,3.1348,196.34,196.28,32.44400974]
[1734655371000,32.44400974,196.29,196.22,32.44400974]
[1734655371176,32.44400974,196.28,196.2,32.44400974]
[1734655371377,32.44400974,196.31,196.24,32.44400974]
[1734655372586,32.44400974,196.3,196.23,32.44400974]
[1734655373311,32.44400974,196.3,196.22,32.44400974]
[1734655373604,32.44400974,196.3,196.23,32.44400974]
[1734655373807,45.17900974,196.31,196.23,32.44400974]
[1734655374104,45.17900974,196.31,196.17,20.0]
[1734655374105,3.1348,196.34,196.28,32.44400974]
[1734655374311,3.1348,196.34,196.1,2.5817]
[1734655374312,32.44400974,196.29,196.1,2.5817]
[1734655374609,32.44400974,196.24,196.16,32.44400974]
[1734655374809,38.95700974,196.26,196.18,32.44400974]
[1734655375120,38.95700974,196.26,196.1,2.5817]
[1734655375121,32.44400974,196.24,196.16,32.44400974]
[1734655375425,32.44400974,196.22,196.14,32.44400974]
[1734655375625,32.44400974,196.2,196.12,32.44400974]
[1734655375922,32.44400974,196.18,196.1,32.44400974]
[1734655376717,32.44400974,196.14,196.06,32.44400974]
[1734655377082,19.99587056,196.13,196.05,20.51342039]
[1734655377394,19.99587056,196.17,196.09,19.99587056]
[1734655377595,15.9546,196.21,196.07,19.99587056]
[1734655377915,19.99587056,196.13,196.05,20.51342039]
[1734655378217,19.99587056,196.11,196.05,0.51754983]
[1734655378518,19.99587056,196.13,196.05,20.51342039]
[1734655378698,19.99587056,196.17,196.09,19.99587056]
[1734655379085,32.47891345,196.18,196.1,32.47891345]
[1734655379984,32.47891345,196.18,196.12,32.47891345]
[1734655380632,32.47891345,196.16,196.08,32.47891345]
[1734655380986,32.47891345,196.13,196.07,32.47891345]
[1734655381586,32.47891345,196.11,196.05,0.51754983]
[1734655381786,32.47891345,196.09,196.05,0.51754983]
[1734655383192,32.47891345,196.07,196.05,0.51754983]
[1734655383524,35.86951345,196.06,196.05,0.51754983]
[1734655383687,59.64639745,196.06,196.05,4.983e-05]
[1734655384409,20.0,196.03,195.88,35.56123959]
[1734655384599,32.47891345,195.95,195.88,32.47891345]
[1734655384917,32.47891345,195.95,195.87,32.47891345]
[1734655385213,32.47891345,195.95,195.88,32.47891345]
[1734655385392,32.47891345,195.95,195.87,32.47891345]
[1734655385793,32.47891345,195.94,195.86,33.12526055]
[1734655385994,32.47891345,195.92,195.86,0.6463471]
[1734655386306,32.47891345,195.91,195.86,0.6463471]
[1734655387719,12.7572,195.97,195.86,0.6463471]
[1734655387720,32.47891345,195.9,195.86,0.6463471]
[1734655388117,32.47891345,195.87,195.86,0.6463471]
[1734655388718,3.315,195.92,195.86,0.6463471]
[1734655388719,32.47891345,195.9,195.86,0.6463471]
[1734655389720,35.79391345,195.92,195.86,0.6463471]
[1734655390103,32.47891345,195.91,195.86,0.6463471]
[1734655390320,32.47891345,195.89,195.86,0.6463471]
[1734655390515,32.47891345,195.88,195.86,0.6463471]
[1734655391232,16.0756,195.92,195.86,0.6463471]
[1734655391233,32.47891345,195.9,195.86,0.6463471]
[1734655391420,3.315,195.92,195.86,0.6463471]
[1734655391421,32.47891345,195.91,195.86,0.6463471]
[1734655391616,32.47891345,195.94,195.86,33.12526055]
[1734655391815,32.47891345,195.95,195.88,32.47891345]
[1734655392325,32.47891345,195.96,195.88,32.47891345]
[1734655392828,32.47891345,195.95,195.88,32.47891345]
[1734655393727,32.47891345,195.95,195.87,32.47891345]
[1734655394111,32.47891345,195.94,195.87,32.47891345]
[1734655394720,32.47891345,195.92,195.86,0.6463471]
[1734655395031,32.47891345,195.93,195.86,0.6463471]
[1734655397029,32.47891345,195.9,195.86,0.6463471]
[1734655397853,32.47891345,195.92,195.86,0.6463471]
[1734655398741,32.47891345,195.88,195.86,0.6463471]
[1734655398945,20.05525403,195.87,195.86,0.6463471]
[1734655399113,20.05525403,195.87,195.71,20.05525403]
[1734655399114,20.0,195.84,195.71,20.05525403]
[1734655399313,23.776884,195.83,195.67,0.76619176]
[1734655399627,23.776884,195.83,195.71,20.05525403]
[1734655399824,20.05525403,195.77,195.69,20.05525403]
[1734655400025,20.05525403,195.76,195.69,20.05525403]
[1734655400226,20.05525403,195.76,195.68,20.05525403]
[1734655400439,20.05525403,195.77,195.69,20.05525403]
[1734655400641,20.05525403,195.76,195.68,20.05525403]
[1734655401020,20.05525403,195.76,195.69,20.05525403]
[1734655401240,20.05525403,195.77,195.69,20.05525403]
[1734655401416,20.05525403,195.77,195.66,0.6463471]
[1734655401417,20.05525403,195.75,195.67,20.05525403]
[1734655401625,20.05525403,195.73,195.66,20.70160113]
[1734655401941,20.05525403,195.73,195.66,0.6463471]
[1734655402140,20.05525403,195.72,195.66,0.6463471]
[1734655402314,20.05525403,195.71,195.66,0.6463471]
[1734655402521,20.05525403,195.73,195.66,0.6463471]
[1734655402746,20.05525403,195.72,195.66,0.6463471]
[1734655403452,20.05525403,195.73,195.66,0.6463471]
[1734655403749,20.05525403,195.72,195.66,0.6463471]
[1734655404055,20.05525403,195.71,195.66,0.6463471]
[1734655404244,20.05525403,195.7,195.66,0.6463471]
[1734655404621,20.05525403,195.69,195.66,0.6463471]
[1734655405122,9.5627,195.74,195.66,0.6463471]
[1734655405123,20.05525403,195.67,195.66,0.6463471]
[1734655406713,9.5627,195.74,195.66,20.70160113]
[1734655406913,20.05525403,195.72,195.66,0.6463471]
[1734655407137,9.5627,195.74,195.66,0.6463471]
[1734655407318,20.08468789,195.68,195.66,0.6463471]
[1734655408016,20.08468789,195.67,195.66,0.6463471]
[1734655408545,43.86157189,195.67,195.66,0.6463471]
[1734655408922,20.08468789,195.67,195.66,0.6463471]
[1734655409854,20.08468789,195.69,195.66,0.6463471]
[1734655410841,20.08468789,195.67,195.66,0.6463471]
[1734655412161,20.08468789,195.69,195.66,0.6463471]
[1734655412366,20.08468789,195.71,195.66,0.6463471]
[1734655412658,20.08468789,195.68,195.66,0.6463471]
[1734655413036,20.08468789,195.67,195.66,0.6463471]
[1734655413660,20.08468789,195.71,195.66,0.6463471]
[1734655414938,20.08468789,195.69,195.66,0.6463471]
[1734655415337,43.86157189,195.67,195.66,0.6463471]
[1734655416129,23.776884,195.66,195.51,0.76661757]
[1734655416333,20.08468789,195.6,195.53,20.08468789]
[1734655416557,20.08468789,195.58,195.5,20.08468789]
[1734655416945,20.08468789,195.51,195.46,0.6463471]
[1734655417145,3.2821,195.59,195.46,0.6463471]
[1734655417146,20.08468789,195.5,195.46,0.6463471]
[1734655417545,20.08468789,195.51,195.46,0.6463471]
[1734655418180,20.08468789,195.52,195.46,0.6463471]
[1734655418465,3.2821,195.59,195.49,20.08468789]
[1734655418466,20.08468789,195.57,195.49,20.08468789]
[1734655418653,20.08468789,195.55,195.48,20.08468789]
[1734655418967,3.2821,195.59,195.46,0.6463471]
[1734655418968,32.68034777,195.57,195.5,32.68034777]
[1734655419150,32.68034777,195.56,195.49,32.68034777]
[1734655419467,32.68034777,195.55,195.48,32.68034777]
[1734655419767,32.68034777,195.56,195.48,32.68034777]
[1734655420070,35.96244777,195.59,195.51,32.68034777]
[1734655420284,32.68034777,195.62,195.55,32.68034777]
[1734655420568,38.73984777,195.63,195.56,32.68034777]
[1734655420757,6.0595,195.63,195.56,32.68034777]
[1734655420958,32.68034777,195.59,195.48,12.789]
[1734655421347,32.68034777,195.6,195.53,32.68034777]
[1734655421546,32.68034777,195.62,195.55,32.68034777]
[1734655421833,32.68034777,195.62,195.54,32.68034777]
[1734655422239,32.68034777,195.62,195.48,13.55604291]
[1734655422439,38.73984777,195.63,195.55,32.68034777]
[1734655422883,6.0595,195.63,195.56,32.68034777]
[1734655423057,6.0595,195.63,195.57,32.68034777]
[1734655423447,6.0595,195.63,195.56,32.68034777]
[1734655423647,32.68034777,195.62,195.55,32.68034777]
[1734655423967,32.68034777,195.62,195.53,32.68034777]
[1734655424172,32.68034777,195.57,195.51,32.68034777]
[1734655426076,32.68034777,195.59,195.51,32.68034777]
[1734655426282,32.68034777,195.61,195.53,32.68034777]
[1734655426493,32.68034777,195.61,195.54,32.68034777]
[1734655427082,32.68034777,195.62,195.55,32.68034777]
[1734655428472,32.68034777,195.62,195.53,32.68034777]
[1734655429189,32.68034777,195.6,195.51,32.68034777]
[1734655430484,23.776884,195.62,195.51,32.68034777]
[1734655430485,32.68034777,195.58,195.51,32.68034777]
[1734655430988,32.68034777,195.6,195.51,32.68034777]
[1734655431170,32.68034777,195.6,195.53,32.68034777]
[1734655431370,32.68034777,195.62,195.55,32.68034777]
[1734655431577,32.68034777,195.62,195.54,32.68034777]
[1734655431783,32.68034777,195.61,195.53,32.68034777]
[1734655432981,38.73984777,195.63,195.55,32.68034777]
[1734655433182,3.3678,195.66,195.58,32.68034777]
[1734655433183,32.68034777,195.65,195.58,32.68034777]
[1734655433686,39.00034777,195.69,195.61,32.68034777]
[1734655433880,39.00034777,195.69,195.55,20.0]
[1734655433881,32.68034777,195.67,195.59,32.68034777]
[1734655434191,32.68034777,195.63,195.55,52.68034777]
[1734655434394,32.68034777,195.62,195.55,52.68034777]
[1734655434869,32.68034777,195.63,195.55,52.68034777]
[1734655435066,32.68034777,195.63,195.56,32.68034777]
[1734655435268,32.68034777,195.64,195.56,32.68034777]
[1734655435465,32.68034777,195.64,195.55,32.68034777]
[1734655437670,32.68034777,195.64,195.57,32.68034777]
[1734655438178,32.68034777,195.68,195.61,32.68034777]
[1734655438581,6.32,195.69,195.63,32.68034777]
[1734655440082,32.68034777,195.65,195.56,32.68034777]
[1734655440284,32.68034777,195.62,195.55,32.68034777]
[1734655440588,32.68034777,195.63,195.55,32.68034777]
[1734655440893,32.68034777,195.64,195.55,32.68034777]
[1734655441096,20.09798707,195.64,195.57,20.09798707]
[1734655441473,20.09798707,195.62,195.54,20.09798707]
[1734655442182,20.09798707,195.58,195.52,20.09798707]
[1734655442501,20.09798707,195.56,195.48,20.09798707]
[1734655442690,20.09798707,195.54,195.46,20.74433417]
[1734655443080,20.09798707,195.58,195.52,20.09798707]
[1734655443380,3.3347,195.6,195.46,0.6463471]
[1734655443381,20.09798707,195.59,195.51,20.09798707]
[1734655444106,26.45178707,195.62,195.54,20.09798707]
[1734655444491,20.09798707,195.65,195.57,20.09798707]
[1734655444694,3.5396,195.66,195.59,20.09798707]
[1734655444695,23.63758707,195.66,195.59,20.09798707]
[1734655445075,26.45178707,195.68,195.6,20.09798707]
[1734655446107,6.3538,195.68,195.62,20.09798707]
[1734655446280,20.09798707,195.7,195.62,20.09798707]
[1734655446689,26.58318707,195.73,195.66,20.09798707]
[1734655446893,6.4852,195.73,195.67,20.09798707]
[1734655447094,6.4852,195.73,195.61,0.76647954]
[1734655447095,20.09798707,195.77,195.7,20.09798707]
[1734655447321,20.09798707,195.74,195.67,20.09798707]
[1734655448136,20.09798707,195.75,195.67,20.09798707]
[1734655448629,20.09798707,195.74,195.67,20.09798707]
[1734655448807,20.09798707,195.74,195.65,20.09798707]
[1734655448808,20.09798707,195.72,195.65,20.09798707]
[1734655449127,20.09798707,195.74,195.65,20.09798707]
[1734655450019,20.09798707,195.76,195.68,20.09798707]
[1734655450320,20.09798707,195.77,195.69,20.09798707]
[1734655450493,29.98068707,195.78,195.7,20.09798707]
[1734655450695,20.09798707,195.77,195.7,20.09798707]
[1734655450890,9.8827,195.78,195.73,20.09798707]
[1734655451614,9.8827,195.78,195.72,20.09798707]
[1734655451795,20.09798707,195.77,195.7,20.09798707]
[1734655451994,20.09798707,195.72,195.65,20.09798707]
[1734655452224,23.776884,195.75,195.6,20.86457022]
[1734655453118,23.776884,195.75,195.68,20.09798707]
[1734655453705,23.776884,195.75,195.69,20.09798707]
[1734655453905,23.776884,195.75,195.68,20.09798707]
[1734655454220,23.776884,195.75,195.69,20.09798707]
[1734655454423,23.776884,195.75,195.68,20.09798707]
[1734655454626,23.776884,195.73,195.66,20.09798707]
[1734655455930,43.87487107,195.73,195.65,20.09798707]
[1734655456644,43.87487107,195.73,195.66,20.09798707]
[1734655456943,43.87487107,195.73,195.64,20.09798707]
[1734655457539,20.09798707,195.75,195.66,20.09798707]
[1734655457717,20.09798707,195.75,195.68,20.09798707]
[1734655458232,20.09798707,195.76,195.68,20.09798707]
[1734655458433,20.09798707,195.75,195.68,20.09798707]
[1734655461718,9.8827,195.78,195.72,20.09798707]
[1734655461930,23.16374392,195.81,195.74,20.09798707]
[1734655462126,20.09798707,195.81,195.74,20.09798707]
[1734655462538,26.27318707,195.83,195.76,20.09798707]
[1734655462739,6.1752,195.83,195.79,20.09798707]
[1734655463057,26.27318707,195.88,195.81,20.09798707]
[1734655463258,6.1752,195.88,195.82,20.09798707]
[1734655463549,6.1752,195.88,195.83,20.09798707]
[1734655464138,20.09798707,195.87,195.8,20.09798707]
[1734655464323,20.09798707,195.83,195.76,20.09798707]
[1734655464524,20.09798707,195.81,195.74,20.09798707]
[1734655464735,20.09798707,195.8,195.73,20.09798707]
[1734655464938,20.09798707,195.79,195.72,20.09798707]
[1734655465138,20.09798707,195.81,195.74,20.09798707]
[1734655465535,20.09798707,195.85,195.78,20.09798707]
[1734655465744,20.09798707,195.86,195.79,20.09798707]
[1734655466088,6.1752,195.88,195.77,20.0]
[1734655466245,6.1752,195.88,195.84,20.09798707]
[1734655466577,3.5671,195.9,195.86,20.09798707]
[1734655466741,6.1752,195.93,195.87,20.09798707]
[1734655466945,6.1752,195.93,195.86,20.09798707]
[1734655467145,26.27318707,195.93,195.86,20.09798707]
[1734655467762,6.1752,195.93,195.86,20.09798707]
[1734655467960,6.1752,195.93,195.89,20.09798707]
[1734655468558,3.5671,195.96,195.89,20.09798707]
[1734655469146,3.5671,195.96,195.9,20.09798707]
[1734655470856,3.5671,195.96,195.89,20.09798707]
[1734655471070,6.0266,195.98,195.91,20.09798707]
[1734655471654,26.12458707,195.98,195.91,20.09798707]
[1734655472065,6.0266,195.98,195.91,20.09798707]
[1734655472371,20.09798707,195.97,195.89,20.09798707]
[1734655472538,43.87487107,195.95,195.87,20.09798707]
[1734655472874,20.09798707,195.91,195.84,20.09798707]
[1734655473044,20.09798707,195.95,195.87,20.09798707]
[1734655473245,20.09798707,195.94,195.87,20.09798707]
[1734655473477,43.87487107,195.96,195.88,20.09798707]
[1734655473675,26.12458707,195.98,195.9,20.09798707]
[1734655475045,6.0266,195.98,195.92,20.09798707]
[1734655475339,6.0266,195.98,195.93,20.09798707]
[1734655475767,6.0266,195.98,195.91,20.09798707]
[1734655475968,26.12458707,195.98,195.9,20.09798707]
[1734655476147,20.09798707,195.94,195.87,20.09798707]
[1734655476349,20.09798707,195.92,195.84,20.09798707]
[1734655476538,20.09798707,195.92,195.85,20.09798707]
[1734655477162,20.09798707,195.9,195.82,20.09798707]
[1734655477469,20.09798707,195.84,195.77,20.09798707]
[1734655477675,20.09798707,195.83,195.76,20.09798707]
[1734655477854,6.1881,195.86,195.78,20.09798707]
[1734655477855,26.28608707,195.86,195.78,20.09798707]
[1734655478060,6.1881,195.86,195.78,20.09798707]
[1734655478585,20.09798707,195.82,195.74,20.09798707]
[1734655478796,20.09798707,195.84,195.76,20.09798707]
[1734655478953,23.776884,195.84,195.77,32.59346574]
[1734655479382,32.59346574,195.85,195.78,32.59346574]
[1734655479553,6.1881,195.86,195.8,32.59346574]
[1734655480851,38.78156574,195.86,195.79,32.59346574]
[1734655481358,38.78156574,195.86,195.78,32.59346574]
[1734655481674,38.78156574,195.86,195.79,32.59346574]
[1734655481978,6.1881,195.86,195.79,32.59346574]
[1734655482474,32.59346574,195.88,195.81,32.59346574]
[1734655482674,40.8274,196.03,195.87,32.59346574]
[1734655482675,32.59346574,195.95,195.87,32.59346574]
[1734655482855,3.2187,195.96,195.9,32.59346574]
[1734655483055,6.2632,195.97,195.93,32.59346574]
[1734655483457,6.2632,195.97,195.84,0.76561962]
[1734655483677,6.2632,195.97,195.91,32.59346574]
[1734655483980,6.20168513,195.97,195.93,32.59346574]
[1734655484162,6.20168513,195.97,195.92,32.59346574]
[1734655484560,35.81216574,196.02,195.94,32.59346574]
[1734655484764,3.2187,196.02,195.96,32.59346574]
[1734655484960,3.2187,196.02,195.97,32.59346574]
[1734655485280,32.59346574,196.04,195.97,32.59346574]
[1734655486281,35.67415726,196.06,195.98,32.59346574]
[1734655486459,35.81216574,196.08,196.01,32.59346574]
[1734655486657,32.59346574,196.07,196.0,32.59346574]
[1734655487166,6.2632,196.09,196.03,32.59346574]
[1734655487480,42.07536574,196.14,196.06,32.59346574]
[1734655487689,9.4819,196.14,196.08,32.59346574]
[1734655488191,32.59346574,196.18,196.1,32.59346574]
[1734655488373,32.59346574,196.18,196.11,32.59346574]
[1734655488546,32.59346574,196.17,196.09,32.59346574]
[1734655488964,32.59346574,196.14,196.06,32.59346574]
[1734655489175,32.59346574,196.13,196.05,32.59346574]
[1734655490074,32.59346574,196.13,195.98,0.76507614]
[1734655490075,56.37034974,196.1,196.02,32.59346574]
[1734655490378,32.59346574,196.08,196.01,32.59346574]
[1734655490556,23.776884,196.07,196.0,32.59346574]
[1734655490757,56.37034974,196.07,195.99,32.59346574]
[1734655491073,56.37034974,196.07,196.0,32.59346574]
[1734655491074,32.59346574,196.07,196.0,32.59346574]
[1734655491263,32.59346574,196.09,196.02,32.59346574]
[1734655492271,32.59346574,196.08,196.0,32.59346574]
[1734655492583,32.59346574,196.1,196.02,32.59346574]
[1734655493180,32.59346574,196.12,196.04,32.59346574]
[1734655493376,32.59346574,196.09,196.02,32.59346574]
[1734655493979,23.776884,196.11,196.02,32.59346574]
[1734655493980,56.37034974,196.11,196.02,32.59346574]
[1734655495307,32.59346574,196.09,196.02,32.59346574]
[1734655495468,32.59346574,196.06,195.98,32.59346574]
[1734655495670,32.59346574,196.04,195.96,32.59346574]
[1734655496000,32.59346574,196.02,195.94,32.59346574]
[1734655496397,32.59346574,196.04,195.98,32.59346574]
[1734655496576,32.59346574,196.04,195.96,32.59346574]
[1734655497802,32.59346574,196.02,195.94,32.59346574]
[1734655497973,12.7526,196.04,195.9,32.59346574]
[1734655497974,32.59346574,196.04,195.96,32.59346574]
[1734655498172,32.59346574,196.06,195.98,32.59346574]
[1734655499603,32.59346574,196.05,195.98,32.59346574]
[1734655500385,32.59346574,196.02,195.93,32.59346574]
[1734655500589,32.59346574,196.01,195.95,32.59346574]
[1734655500903,32.59346574,196.05,195.96,32.59346574]
[1734655501104,20.01629112,196.05,195.97,20.01629112]
[1734655502100,20.01629112,196.05,195.98,20.01629112]
[1734655502402,20.01629112,196.01,195.93,20.01629112]
[1734655502605,20.01629112,196.01,195.94,20.01629112]
[1734655502970,20.01629112,196.02,195.94,20.01629112]
[1734655503198,20.01629112,196.01,195.94,20.01629112]
[1734655503398,20.01629112,195.97,195.89,20.01629112]
[1734655503599,20.01629112,196.0,195.87,20.01629112]
[1734655503812,20.01629112,195.91,195.83,20.01629112]
[1734655504012,19.0099,195.93,195.85,20.01629112]
[1734655504175,3.2502,195.99,195.79,0.7659356]
[1734655504502,6.6274,196.06,195.81,0.12549]
[1734655504801,6.6274,196.06,195.85,0.12549]
[1734655505012,18.9422,196.12,195.89,23.902374]
[1734655505297,6.1945,196.12,196.06,20.01629112]
[1734655505468,6.1945,196.12,196.07,20.01629112]
[1734655505671,0.6463471,196.15,196.11,20.01629112]
[1734655505870,0.6463471,196.15,196.12,20.01629112]
[1734655506075,0.6463471,196.15,196.14,20.01629112]
[1734655507087,0.6463471,196.15,196.14,32.46106108]
[1734655512902,0.6463471,196.15,196.12,32.46106108]
[1734655513217,0.6463471,196.15,196.1,32.46106108]
[1734655513610,33.10740818,196.15,196.06,32.46106108]
[1734655513920,32.46106108,196.13,196.04,32.46106108]
[1734655514218,0.6463471,196.15,196.12,32.46106108]
[1734655514386,0.6463471,196.15,196.14,32.46106108]
[1734655514582,0.6463471,196.15,196.11,32.46106108]
[1734655515088,0.6463471,196.15,196.14,32.46106108]
[1734655516795,0.6463471,196.15,196.1,32.46106108]
[1734655516977,32.46106108,196.12,196.05,32.46106108]
[1734655517182,32.46106108,196.1,196.02,32.46106108]
[1734655517412,32.46106108,196.08,196.01,32.46106108]
[1734655517618,32.46106108,196.06,195.92,0.76506509]
[1734655517813,23.776884,196.09,195.9,33.22632742]
[1734655517814,32.46106108,196.05,195.9,33.22632742]
[1734655518064,32.46106108,196.06,195.99,32.46106108]
[1734655518386,32.46106108,196.02,195.94,32.46106108]
[1734655518715,23.776884,196.09,195.91,32.46106108]
[1734655518716,32.46106108,195.99,195.91,32.46106108]
[1734655518887,23.776884,196.09,195.92,0.76559851]
[1734655519086,23.776884,196.09,195.85,0.12549]
[1734655519316,3.3598,196.1,195.87,0.12549]
[1734655519495,3.3598,196.1,195.89,0.12549]
[1734655519713,3.3598,196.1,195.9,0.76509839]
[1734655520217,32.46106108,196.08,196.01,32.46106108]
[1734655520383,3.3598,196.1,196.05,32.46106108]
[1734655520720,3.3598,196.1,195.9,33.22615947]
[1734655520721,23.776884,196.09,196.01,32.46106108]
[1734655521014,3.3598,196.1,195.94,13.52361595]
[1734655521206,3.3598,196.1,195.97,20.0]
[1734655521391,3.3598,196.1,195.98,0.76508347]
[1734655521812,3.3598,196.1,195.97,20.0]
[1734655522019,23.776884,196.09,195.97,20.0]
[1734655522327,3.3598,196.1,196.02,32.46106108]
[1734655522328,35.82086108,196.1,196.02,32.46106108]
[1734655522501,3.3598,196.1,196.04,32.46106108]
[1734655522707,3.3598,196.1,196.06,32.46106108]
[1734655523032,0.6463471,196.15,196.09,32.46106108]
[1734655523219,0.6463471,196.15,196.12,32.46106108]
[1734655523416,0.6463471,196.15,196.13,32.46106108]
[1734655523614,0.6463471,196.15,196.14,32.46106108]
[1734655524206,0.6463471,196.15,196.13,32.46106108]
[1734655524606,0.6463471,196.15,196.14,32.46106108]
[1734655524909,0.6463471,196.15,196.13,32.46106108]
[1734655525236,0.6463471,196.15,196.1,32.46106108]
[1734655525580,0.6463471,196.15,196.12,32.46106108]
[1734655525831,33.10740818,196.15,196.07,32.46106108]
[1734655526009,0.6463471,196.15,196.14,32.46106108]
[1734655527501,0.6463471,196.15,196.07,13.51437052]
[1734655527701,0.6463471,196.15,196.13,32.46106108]